fUST/lending_fUST_20250526
["ID","MTS","AMOUNT","RATE_DAILY","PERIOD"]
[362323365,1748193040203,-1897.46,0.00019178,2]
[362323367,1748193040212,-500.0,0.00019178,2]
[362323369,1748193040221,-430.0,0.00019178,2]
[362323371,1748193040232,-430.0,0.00019178,2]
[362323373,1748193040241,-430.0,0.00019178,2]
[362323375,1748193040250,-151.0,0.00019178,2]
[362323377,1748193040259,-151.0,0.00019178,2]
[362323379,1748193040269,-151.0,0.00019178,2]
[362323381,1748193040280,-151.0,0.00019178,2]
[362323383,1748193040289,-430.0,0.00019178,2]
[362323385,1748193040298,-430.0,0.00019178,2]
[362323387,1748193040308,-745.36,0.00019178,2]
[362323389,1748193040317,-506.77,0.00019178,2]
[362323391,1748193040327,-786.42,0.00019178,2]
[362323393,1748193040337,-430.0,0.00019178,2]
[362323395,1748193040349,-430.0,0.00019178,2]
[362323397,1748193040359,-526.83,0.00019178,2]
[362323399,1748193040368,-430.0,0.00019178,2]
[362323401,1748193040378,-1124.47,0.00019178,2]
[362323403,1748193040387,-430.0,0.00019178,2]
[362323405,1748193040397,-1941.19,0.00019178,2]
[362323407,1748193040407,-151.09823618,0.00019178,2]
[362323409,1748193040418,-430.0,0.00019178,2]
[362323411,1748193040428,-430.0,0.00019178,2]
[362323413,1748193040437,-1160.79,0.00019178,2]
[362323415,1748193040447,-431.77,0.00019178,2]
[362323417,1748193040462,-430.0,0.00019178,2]
[362323419,1748193040473,-430.0,0.00019178,2]
[362323421,1748193040485,-172.25,0.00019178,2]
[362323423,1748193040494,-430.0,0.00019178,2]
[362323425,1748193040504,-667.09,0.00019178,2]
[362323427,1748193040514,-452.1,0.00019178,2]
[362323429,1748193040523,-430.0,0.00019178,2]
[362323432,1748193040534,-3703.68,0.00019178,2]
[362323434,1748193040543,-430.0,0.00019178,2]
[362323436,1748193040553,-483.21,0.00019178,2]
[362323438,1748193040563,-430.0,0.00019178,2]
[362323440,1748193040574,-731.04,0.00019178,2]
[362323442,1748193040584,-473.12860954,0.00019178,2]
[362323444,1748193040593,-430.0,0.00019178,2]
[362323446,1748193040603,-940.02,0.00019178,2]
[362323448,1748193040612,-2436.59,0.00019178,2]
[362323450,1748193040621,-430.0,0.00019178,2]
[362323452,1748193040630,-898.82,0.00019178,2]
[362323454,1748193040640,-3184.93,0.00019178,2]
[362323456,1748193040649,-430.0,0.00019178,2]
[362323458,1748193040658,-1583.27,0.00019178,2]
[362323460,1748193040668,-250.39544778,0.00019178,2]
[362323462,1748193040678,-1458.32,0.00019178,2]
[362323464,1748193040687,-1914.34,0.00019178,2]
[362323466,1748193040698,-440.16,0.00019178,2]
[362323468,1748193040707,-486.79,0.00019178,2]
[362323470,1748193040717,-430.0,0.00019178,2]
[362323472,1748193040726,-430.0,0.00019178,2]
[362323474,1748193040736,-151.0,0.00019178,2]
[362323476,1748193040745,-604.47,0.00019178,2]
[362323478,1748193040755,-151.0,0.00019178,2]
[362323480,1748193040764,-151.0,0.00019178,2]
[362323482,1748193040773,-400.0,0.00019178,2]
[362323484,1748193040783,-151.0,0.00019178,2]
[362323486,1748193040793,-806.14,0.00019178,2]
[362323489,1748193040803,-430.0,0.00019178,2]
[362323491,1748193040812,-652.13,0.00019178,2]
[362323494,1748193040823,-430.0,0.00019178,2]
[362323496,1748193040833,-430.0,0.00019178,2]
[362323498,1748193040843,-430.0,0.00019178,2]
[362323500,1748193040852,-430.0,0.00019178,2]
[362323502,1748193040862,-430.0,0.00019178,2]
[362323504,1748193040874,-5398.18,0.00019178,2]
[362323506,1748193040884,-430.0,0.00019178,2]
[362323508,1748193040893,-2436.8,0.00019178,2]
[362323510,1748193040903,-4060.52,0.00019178,2]
[362323512,1748193040914,-430.0,0.00019178,2]
[362323514,1748193040923,-430.0,0.00019178,2]
[362323516,1748193040932,-430.0,0.00019178,2]
[362323518,1748193040943,-1257.15,0.00019178,2]
[362323520,1748193040953,-430.0,0.00019178,2]
[362323522,1748193040962,-430.0,0.00019178,2]
[362323524,1748193040972,-430.0,0.00019178,2]
[362323527,1748193040982,-1081.11,0.00019178,2]
[362323529,1748193040991,-554.93132295,0.00019178,2]
[362323531,1748193041001,-5898.08,0.00019178,2]
[362323533,1748193041011,-430.0,0.00019178,2]
[362323535,1748193041020,-1034.29,0.00019178,2]
[362323537,1748193041030,-430.0,0.00019178,2]
[362323539,1748193041040,-430.0,0.00019178,2]
[362323541,1748193041050,-430.0,0.00019178,2]
[362323542,1748193041059,-540.6,0.00019178,2]
[362323544,1748193041070,-754.36,0.00019178,2]
[362323546,1748193041079,-958.71,0.00019178,2]
[362323548,1748193041088,-430.0,0.00019178,2]
[362323551,1748193041098,-430.0,0.00019178,2]
[362323553,1748193041107,-928.69,0.00019178,2]
[362323555,1748193041117,-698.56,0.00019178,2]
[362323557,1748193041126,-553.88,0.00019178,2]
[362323559,1748193041135,-921.85,0.00019178,2]
[362323561,1748193041145,-430.0,0.00019178,2]
[362323563,1748193041154,-158.478042,0.00019178,2]
[362323565,1748193041164,-7960.4,0.00019266,2]
[362323567,1748193041174,-151.0,0.00019266,2]
[362323569,1748193041183,-160.371,0.00019288,2]
[362323571,1748193041193,-368.20414749,0.00019352,2]
[362323573,1748193041202,-416.6252007,0.00019378,2]
[362323575,1748193041212,-1144.2457,0.00019395,7]
[362323577,1748193041221,-3000.0,0.000194,2]
[362323579,1748193041231,-151.0,0.000194,2]
[362323581,1748193041240,-151.0,0.000194,2]
[362323583,1748193041250,-3000.0,0.0001941,2]
[362323585,1748193041259,-151.0,0.0001941,2]
[362323587,1748193041268,-3000.0,0.0001942,2]
[362323589,1748193041278,-222.0,0.0001942,2]
[362323591,1748193041287,-3000.0,0.0001943,2]
[362323593,1748193041296,-3000.0,0.0001944,2]
[362323595,1748193041306,-1100.0,0.0001945,2]
[362323597,1748193041315,-3000.0,0.0001945,2]
[362323599,1748193041326,-151.0,0.0001945,2]
[362323601,1748193041335,-151.0,0.00019452,2]
[362323603,1748193041345,-151.0,0.00019452,2]
[362323605,1748193041354,-151.0,0.00019452,2]
[362323607,1748193041364,-151.0,0.00019452,2]
[362323609,1748193041373,-430.0,0.00019452,2]
[362323611,1748193041382,-211.19863111,0.00019452,2]
[362323613,1748193041391,-151.0,0.00019452,2]
[362323615,1748193041401,-430.0,0.00019452,2]
[362323617,1748193041410,-669.69,0.00019452,2]
[362323619,1748193041419,-430.0,0.00019452,2]
[362323621,1748193041429,-176.13,0.00019452,2]
[362323623,1748193041439,-176.13,0.00019452,2]
[362323625,1748193041448,-176.14646473,0.00019452,2]
[362323627,1748193041459,-430.0,0.00019452,2]
[362323629,1748193041469,-166.88334488,0.00019452,2]
[362323631,1748193041478,-430.0,0.00019452,2]
[362323633,1748193041487,-430.0,0.00019452,2]
[362323635,1748193041496,-430.0,0.00019452,2]
[362323637,1748193041506,-430.0,0.00019452,2]
[362323639,1748193041515,-430.0,0.00019452,2]
[362323641,1748193041525,-430.0,0.00019452,2]
[362323643,1748193041534,-430.0,0.00019452,2]
[362323645,1748193041546,-269.50450045,0.00019452,2]
[362323647,1748193041555,-430.0,0.00019452,2]
[362323649,1748193041565,-177.083587,0.00019452,2]
[362323651,1748193041575,-430.0,0.00019452,2]
[362323653,1748193041584,-430.0,0.00019452,2]
[362323655,1748193041593,-430.0,0.00019452,2]
[362323657,1748193041603,-430.0,0.00019452,2]
[362323659,1748193041612,-430.0,0.00019452,2]
[362323661,1748193041622,-430.0,0.00019452,2]
[362323663,1748193041631,-430.0,0.00019452,2]
[362323665,1748193041641,-430.0,0.00019452,2]
[362323667,1748193041651,-536.44,0.00019452,2]
[362323669,1748193041661,-430.0,0.00019452,2]
[362323671,1748193041670,-430.0,0.00019452,2]
[362323673,1748193041679,-430.0,0.00019452,2]
[362323675,1748193041689,-430.0,0.00019452,2]
[362323677,1748193041699,-430.0,0.00019452,2]
[362323679,1748193041708,-430.0,0.00019452,2]
[362323682,1748193041718,-430.0,0.00019452,2]
[362323684,1748193041729,-430.0,0.00019452,2]
[362323686,1748193041738,-430.0,0.00019452,2]
[362323688,1748193041747,-430.0,0.00019452,2]
[362323690,1748193041758,-430.0,0.00019452,2]
[362323706,1748193041912,-430.0,0.00019452,2]
[362323708,1748193041923,-151.0,0.00019452,2]
[362323710,1748193041933,-430.0,0.00019452,2]
[362323712,1748193041943,-430.0,0.00019452,2]
[362323715,1748193041955,-430.0,0.00019452,2]
[362323717,1748193041964,-430.0,0.00019452,2]
[362323719,1748193041974,-430.0,0.00019452,2]
[362323721,1748193041983,-430.0,0.00019452,2]
[362323723,1748193041992,-544.49,0.00019452,2]
[362323725,1748193042002,-430.0,0.00019452,2]
[362323727,1748193042011,-430.0,0.00019452,2]
[362323729,1748193042022,-430.0,0.00019452,2]
[362323731,1748193042032,-430.0,0.00019452,2]
[362323733,1748193042041,-430.0,0.00019452,2]
[362323735,1748193042051,-430.0,0.00019452,2]
[362323737,1748193042060,-444.53,0.00019452,2]
[362323739,1748193042069,-2709.06,0.00019452,2]
[362323741,1748193042079,-430.0,0.00019452,2]
[362323743,1748193042089,-430.0,0.00019452,2]
[362323745,1748193042098,-151.0,0.00019452,2]
[362323747,1748193042107,-297.095476,0.00019452,2]
[362323749,1748193042117,-430.0,0.00019452,2]
[362323751,1748193042126,-430.0,0.00019452,2]
[362323753,1748193042135,-514.96,0.00019452,2]
[362323755,1748193042145,-430.0,0.00019452,2]
[362323757,1748193042154,-160.0,0.00019452,2]
[362323759,1748193042165,-430.0,0.00019452,2]
[362323761,1748193042177,-430.0,0.00019452,2]
[362323763,1748193042186,-430.0,0.00019452,2]
[362323765,1748193042195,-430.0,0.00019452,2]
[362323767,1748193042205,-430.0,0.00019452,2]
[362323769,1748193042215,-430.0,0.00019452,2]
[362323771,1748193042224,-430.0,0.00019452,2]
[362323773,1748193042233,-483.69,0.00019452,2]
[362323775,1748193042243,-430.0,0.00019452,2]
[362323777,1748193042252,-430.0,0.00019452,2]
[362323779,1748193042261,-430.0,0.00019452,2]
[362323781,1748193042271,-430.0,0.00019452,2]
[362323783,1748193042281,-468.28,0.00019452,2]
[362323785,1748193042290,-464.67253747,0.00019452,2]
[362323787,1748193042300,-430.0,0.00019452,2]
[362323789,1748193042309,-430.0,0.00019452,2]
[362323791,1748193042318,-430.0,0.00019452,2]
[362323794,1748193042330,-430.0,0.00019452,2]
[362323796,1748193042339,-3209.72,0.00019452,2]
[362323798,1748193042348,-722.49,0.00019452,2]
[362323800,1748193042359,-2145.16,0.00019452,2]
[362323802,1748193042369,-442.46,0.00019452,2]
[362323804,1748193042379,-3863.05,0.00019452,2]
[362323806,1748193042388,-430.0,0.00019452,2]
[362323808,1748193042397,-490.60714715,0.00019452,2]
[362323810,1748193042406,-1929.98,0.00019452,2]
[362323812,1748193042415,-454.28,0.00019452,2]
[362323814,1748193042425,-430.0,0.00019452,2]
[362323816,1748193042435,-430.0,0.00019452,2]
[362323818,1748193042444,-1016.49,0.00019452,2]
[362323820,1748193042455,-812.13,0.00019452,2]
[362323822,1748193042464,-430.0,0.00019452,2]
[362323824,1748193042473,-430.0,0.00019452,2]
[362323826,1748193042483,-430.0,0.00019452,2]
[362323828,1748193042492,-430.0,0.00019452,2]
[362323830,1748193042501,-430.0,0.00019452,2]
[362323832,1748193042510,-430.0,0.00019452,2]
[362323834,1748193042520,-430.0,0.00019452,2]
[362323835,1748193042529,-580.91,0.00019452,2]
[362323836,1748193042538,-857.85,0.00019452,2]
[362323837,1748193042548,-430.0,0.00019452,2]
[362323838,1748193042557,-681.89,0.00019452,2]
[362323840,1748193042567,-430.0,0.00019452,2]
[362323842,1748193042576,-982.31,0.00019452,2]
[362323843,1748193042586,-1897.46,0.00019452,2]
[362323845,1748193042595,-500.0,0.00019452,2]
[362323847,1748193042606,-430.0,0.00019452,2]
[362323849,1748193042615,-430.0,0.00019452,2]
[362323851,1748193042626,-430.0,0.00019452,2]
[362323852,1748193042635,-151.0,0.00019452,2]
[362323853,1748193042644,-151.0,0.00019452,2]
[362323854,1748193042654,-151.0,0.00019452,2]
[362323855,1748193042664,-430.0,0.00019452,2]
[362323856,1748193042674,-430.0,0.00019452,2]
[362323857,1748193042683,-745.36,0.00019452,2]
[362323858,1748193042692,-506.77,0.00019452,2]
[362323859,1748193042702,-786.42,0.00019452,2]
[362323860,1748193042712,-430.0,0.00019452,2]
[362323861,1748193042721,-430.0,0.00019452,2]
[362323862,1748193042731,-526.83,0.00019452,2]
[362323863,1748193042740,-430.0,0.00019452,2]
[362323864,1748193042750,-1124.47,0.00019452,2]
[362323865,1748193042759,-432.38763229,0.00019452,2]
[362323866,1748193042769,-1941.19,0.00019452,2]
[362323867,1748193042779,-430.0,0.00019452,2]
[362323868,1748193042788,-284.29490678,0.00019452,2]
[362323869,1748193042798,-1160.79,0.00019452,2]
[362323870,1748193042808,-431.77,0.00019452,2]
[362323871,1748193042818,-430.0,0.00019452,2]
[362323872,1748193042828,-331.08793765,0.00019452,2]
[362323873,1748193042837,-430.0,0.00019452,2]
[362323874,1748193042846,-667.09,0.00019452,2]
[362323876,1748193042856,-452.1,0.00019452,2]
[362323878,1748193042868,-3703.68,0.00019452,2]
[362323880,1748193042879,-430.0,0.00019452,2]
[362323882,1748193042889,-483.21,0.00019452,2]
[362323884,1748193042898,-430.0,0.00019452,2]
[362323886,1748193042908,-731.04,0.00019452,2]
[362323888,1748193042918,-430.0,0.00019452,2]
[362323890,1748193042927,-940.02,0.00019452,2]
[362323892,1748193042936,-2436.59,0.00019452,2]
[362323894,1748193042948,-430.0,0.00019452,2]
[362323896,1748193042960,-898.82,0.00019452,2]
[362323898,1748193042969,-3184.93,0.00019452,2]
[362323900,1748193042979,-430.0,0.00019452,2]
[362323902,1748193042988,-1583.27,0.00019452,2]
[362323904,1748193042997,-1458.32,0.00019452,2]
[362323906,1748193043007,-1914.34,0.00019452,2]
[362323908,1748193043016,-440.16,0.00019452,2]
[362323910,1748193043026,-486.79,0.00019452,2]
[362323912,1748193043035,-430.0,0.00019452,2]
[362323914,1748193043045,-430.0,0.00019452,2]
[362323916,1748193043054,-604.47,0.00019452,2]
[362323918,1748193043063,-806.14,0.00019452,2]
[362323920,1748193043074,-430.0,0.00019452,2]
[362323922,1748193043083,-652.13,0.00019452,2]
[362323924,1748193043093,-430.0,0.00019452,2]
[362323926,1748193043102,-430.0,0.00019452,2]
[362323928,1748193043111,-430.0,0.00019452,2]
[362323929,1748193043121,-430.0,0.00019452,2]
[362323930,1748193043130,-430.0,0.00019452,2]
[362323931,1748193043139,-5398.18,0.00019452,2]
[362323932,1748193043148,-151.46049387,0.00019452,2]
[362323933,1748193043157,-2436.8,0.00019452,2]
[362323934,1748193043167,-4060.52,0.00019452,2]
[362323935,1748193043176,-430.0,0.00019452,2]
[362323936,1748193043186,-535.57411789,0.00019452,2]
[362323937,1748193043197,-481.63,0.00019452,2]
[362323938,1748193043209,-1257.15,0.00019452,2]
[362323939,1748193043218,-430.0,0.00019452,2]
[362323940,1748193043228,-430.0,0.00019452,2]
[362323941,1748193043237,-267.24,0.00019452,2]
[362323942,1748193043246,-1081.11,0.00019452,2]
[362323943,1748193043255,-5898.08,0.00019452,2]
[362323944,1748193043264,-430.0,0.00019452,2]
[362323945,1748193043274,-1034.29,0.00019452,2]
[362323946,1748193043283,-430.0,0.00019452,2]
[362323947,1748193043293,-430.0,0.00019452,2]
[362323949,1748193043303,-430.0,0.00019452,2]
[362323951,1748193043313,-540.6,0.00019452,2]
[362323953,1748193043326,-754.36,0.00019452,2]
[362323955,1748193043336,-958.71,0.00019452,2]
[362323957,1748193043346,-184.8,0.00019452,2]
[362323959,1748193043357,-430.0,0.00019452,2]
[362323961,1748193043367,-928.69,0.00019452,2]
[362323963,1748193043376,-698.56,0.00019452,2]
[362323965,1748193043386,-553.88,0.00019452,2]
[362323967,1748193043395,-921.85,0.00019452,2]
[362323969,1748193043404,-430.0,0.00019452,2]
[362323971,1748193043414,-3000.0,0.0001946,2]
[362323973,1748193043423,-3000.0,0.0001947,2]
[362323975,1748193043432,-3000.0,0.0001948,2]
[362323977,1748193043441,-3000.0,0.0001949,2]
[362323979,1748193043451,-156.0,0.000195,2]
[362323981,1748193043460,-3000.0,0.000195,2]
[362323983,1748193043470,-3000.0,0.0001951,2]
[362323985,1748193043480,-3000.0,0.0001952,2]
[362323987,1748193043489,-195.728306,0.0001952,2]
[362323989,1748193043499,-3000.0,0.0001953,2]
[362323991,1748193043509,-3000.0,0.0001954,2]
[362323993,1748193043518,-3000.0,0.0001955,2]
[362323995,1748193043527,-3000.0,0.0001956,2]
[362323997,1748193043536,-3000.0,0.0001957,2]
[362323999,1748193043546,-3000.0,0.0001958,2]
[362324001,1748193043556,-3000.0,0.0001959,2]
[362324003,1748193043566,-3000.0,0.000196,2]
[362324006,1748193043579,-3412.432236,0.0001961,2]
[362324008,1748193043588,-2000.0,0.000197,2]
[362324010,1748193043597,-500.0,0.00019719,2]
[362324011,1748193043607,-500.0,0.00019719,2]
[362324014,1748193043617,-151.0,0.00019726,2]
[362324015,1748193043627,-151.0,0.00019726,2]
[362324018,1748193043636,-430.0,0.00019726,2]
[362324019,1748193043646,-430.0,0.00019726,2]
[362324021,1748193043657,-669.69,0.00019726,2]
[362324024,1748193043669,-430.0,0.00019726,2]
[362324025,1748193043678,-430.0,0.00019726,2]
[362324027,1748193043689,-151.02360114,0.00019726,2]
[362324029,1748193043699,-430.0,0.00019726,2]
[362324031,1748193043709,-430.0,0.00019726,2]
[362324033,1748193043719,-430.0,0.00019726,2]
[362324035,1748193043729,-430.0,0.00019726,2]
[362324037,1748193043739,-430.0,0.00019726,2]
[362324039,1748193043748,-430.0,0.00019726,2]
[362324041,1748193043757,-430.0,0.00019726,2]
[362324043,1748193043767,-430.0,0.00019726,2]
[362324045,1748193043778,-430.0,0.00019726,2]
[362324047,1748193043787,-430.0,0.00019726,2]
[362324049,1748193043797,-430.0,0.00019726,2]
[362324051,1748193043806,-430.0,0.00019726,2]
[362324053,1748193043816,-430.0,0.00019726,2]
[362324056,1748193043828,-430.0,0.00019726,2]
[362324058,1748193043838,-430.0,0.00019726,2]
[362324060,1748193043847,-536.44,0.00019726,2]
[362324062,1748193043857,-430.0,0.00019726,2]
[362324064,1748193043871,-430.0,0.00019726,2]
[362324066,1748193043880,-430.0,0.00019726,2]
[362324068,1748193043890,-430.0,0.00019726,2]
[362324070,1748193043899,-430.0,0.00019726,2]
[362324072,1748193043911,-430.0,0.00019726,2]
[362324074,1748193043920,-430.0,0.00019726,2]
[362324076,1748193043930,-430.0,0.00019726,2]
[362324078,1748193043939,-430.0,0.00019726,2]
[362324080,1748193043950,-430.0,0.00019726,2]
[362324082,1748193043960,-411.74044434,0.00019726,2]
[362324084,1748193043969,-430.0,0.00019726,2]
[362324086,1748193043980,-430.0,0.00019726,2]
[362324088,1748193043989,-430.0,0.00019726,2]
[362324090,1748193044000,-430.0,0.00019726,2]
[362324092,1748193044010,-430.0,0.00019726,2]
[362324094,1748193044020,-430.0,0.00019726,2]
[362324096,1748193044029,-430.0,0.00019726,2]
[362324098,1748193044039,-430.0,0.00019726,2]
[362324100,1748193044048,-430.0,0.00019726,2]
[362324102,1748193044058,-430.0,0.00019726,2]
[362324104,1748193044067,-430.0,0.00019726,2]
[362324106,1748193044077,-430.0,0.00019726,2]
[362324108,1748193044087,-283.84605592,0.00019726,2]
[362324110,1748193044096,-444.53,0.00019726,2]
[362324112,1748193044106,-2709.06,0.00019726,2]
[362324114,1748193044115,-249.13487948,0.00019726,2]
[362324116,1748193044124,-430.0,0.00019726,2]
[362324118,1748193044134,-430.0,0.00019726,2]
[362324120,1748193044143,-455.92957885,0.00019726,2]
[362324122,1748193044153,-514.96,0.00019726,2]
[362324124,1748193044162,-430.0,0.00019726,2]
[362324126,1748193044172,-430.0,0.00019726,2]
[362324128,1748193044182,-430.0,0.00019726,2]
[362324130,1748193044192,-430.0,0.00019726,2]
[362324132,1748193044201,-430.0,0.00019726,2]
[362324134,1748193044210,-430.0,0.00019726,2]
[362324136,1748193044220,-430.0,0.00019726,2]
[362324138,1748193044229,-204.22144787,0.00019726,2]
[362324140,1748193044239,-483.69,0.00019726,2]
[362324142,1748193044248,-269.09772759,0.00019726,2]
[362324144,1748193044258,-430.0,0.00019726,2]
[362324146,1748193044268,-430.0,0.00019726,2]
[362324148,1748193044278,-430.0,0.00019726,2]
[362324150,1748193044288,-468.28,0.00019726,2]
[362324152,1748193044297,-430.0,0.00019726,2]
[362324154,1748193044306,-407.35543612,0.00019726,2]
[362324156,1748193044316,-430.0,0.00019726,2]
[362324158,1748193044325,-430.0,0.00019726,2]
[362324160,1748193044335,-3209.72,0.00019726,2]
[362324162,1748193044344,-722.49,0.00019726,2]
[362324164,1748193044353,-2145.16,0.00019726,2]
[362324166,1748193044362,-442.46,0.00019726,2]
[362324168,1748193044372,-3863.05,0.00019726,2]
[362324170,1748193044381,-430.0,0.00019726,2]
[362324172,1748193044390,-1929.98,0.00019726,2]
[362324174,1748193044399,-454.28,0.00019726,2]
[362324176,1748193044409,-430.0,0.00019726,2]
[362324178,1748193044418,-430.0,0.00019726,2]
[362324180,1748193044428,-1016.49,0.00019726,2]
[362324182,1748193044437,-812.13,0.00019726,2]
[362324184,1748193044446,-430.0,0.00019726,2]
[362324186,1748193044456,-430.0,0.00019726,2]
[362324188,1748193044466,-430.0,0.00019726,2]
[362324190,1748193044475,-430.0,0.00019726,2]
[362324192,1748193044485,-430.0,0.00019726,2]
[362324194,1748193044494,-430.0,0.00019726,2]
[362324196,1748193044503,-430.0,0.00019726,2]
[362324198,1748193044513,-580.91,0.00019726,2]
[362324200,1748193044523,-430.0,0.00019726,2]
[362324202,1748193044532,-857.85,0.00019726,2]
[362324204,1748193044542,-681.89,0.00019726,2]
[362324206,1748193044552,-982.31,0.00019726,2]
[362324208,1748193044562,-430.0,0.00019726,2]
[362324210,1748193044572,-1897.46,0.00019726,2]
[362324212,1748193044583,-500.0,0.00019726,2]
[362324214,1748193044592,-430.0,0.00019726,2]
[362324216,1748193044601,-430.0,0.00019726,2]
[362324218,1748193044611,-430.0,0.00019726,2]
[362324220,1748193044620,-430.0,0.00019726,2]
[362324222,1748193044630,-430.0,0.00019726,2]
[362324224,1748193044639,-745.36,0.00019726,2]
[362324226,1748193044648,-506.77,0.00019726,2]
[362324228,1748193044658,-786.42,0.00019726,2]
[362324230,1748193044667,-484.98482602,0.00019726,2]
[362324232,1748193044677,-430.0,0.00019726,2]
[362324235,1748193044686,-526.83,0.00019726,2]
[362324238,1748193044695,-430.0,0.00019726,2]
[362324241,1748193044705,-1124.47,0.00019726,2]
[362324244,1748193044714,-1941.19,0.00019726,2]
[362324247,1748193044723,-430.0,0.00019726,2]
[362324250,1748193044732,-1160.79,0.00019726,2]
[362324253,1748193044742,-431.77,0.00019726,2]
[362324256,1748193044751,-430.0,0.00019726,2]
[362324259,1748193044760,-430.0,0.00019726,2]
[362324262,1748193044769,-667.09,0.00019726,2]
[362324265,1748193044779,-452.1,0.00019726,2]
[362324268,1748193044789,-3703.68,0.00019726,2]
[362324271,1748193044799,-430.0,0.00019726,2]
[362324274,1748193044809,-483.21,0.00019726,2]
[362324277,1748193044819,-430.0,0.00019726,2]
[362324280,1748193044829,-731.04,0.00019726,2]
[362324283,1748193044839,-430.0,0.00019726,2]
[362324286,1748193044849,-940.02,0.00019726,2]
[362324288,1748193044859,-2436.59,0.00019726,2]
[362324290,1748193044872,-430.0,0.00019726,2]
[362324292,1748193044882,-898.82,0.00019726,2]
[362324294,1748193044892,-3184.93,0.00019726,2]
[362324296,1748193044901,-430.0,0.00019726,2]
[362324298,1748193044912,-1583.27,0.00019726,2]
[362324300,1748193044922,-1458.32,0.00019726,2]
[362324302,1748193044932,-1914.34,0.00019726,2]
[362324304,1748193044943,-440.16,0.00019726,2]
[362324306,1748193044953,-486.79,0.00019726,2]
[362324309,1748193044963,-318.26170271,0.00019726,2]
[362324311,1748193044973,-430.0,0.00019726,2]
[362324312,1748193044983,-604.47,0.00019726,2]
[362324314,1748193044993,-806.14,0.00019726,2]
[362324317,1748193045003,-430.0,0.00019726,2]
[362324319,1748193045013,-652.13,0.00019726,2]
[362324321,1748193045022,-430.0,0.00019726,2]
[362324323,1748193045032,-430.0,0.00019726,2]
[362324325,1748193045042,-430.0,0.00019726,2]
[362324326,1748193045051,-430.0,0.00019726,2]
[362324328,1748193045060,-430.0,0.00019726,2]
[362324331,1748193045070,-5398.18,0.00019726,2]
[362324333,1748193045081,-2436.8,0.00019726,2]
[362324335,1748193045091,-4060.52,0.00019726,2]
[362324337,1748193045101,-430.0,0.00019726,2]
[362324339,1748193045110,-1257.15,0.00019726,2]
[362324341,1748193045119,-430.0,0.00019726,2]
[362324343,1748193045129,-430.0,0.00019726,2]
[362324345,1748193045138,-1081.11,0.00019726,2]
[362324347,1748193045148,-5898.08,0.00019726,2]
[362324349,1748193045157,-430.0,0.00019726,2]
[362324351,1748193045167,-1034.29,0.00019726,2]
[362324353,1748193045176,-430.0,0.00019726,2]
[362324355,1748193045185,-430.0,0.00019726,2]
[362324357,1748193045196,-430.0,0.00019726,2]